bitfinex/quotes_SOLUSD_20251024
["timestamp","ask_amount","ask_price","bid_price","bid_amount"]
[1761334350323,36.4,193.42,193.4,67.17063081]
[1761334351622,0.7,193.41,193.4,67.17063081]
[1761334351817,0.7,193.41,193.4,62.0]
[1761334352325,0.7,193.41,193.34,62.87]
[1761334352508,0.7,193.41,193.35,3.39470432]
[1761334352509,8.34336103,193.4,193.35,3.39470432]
[1761334352823,4.17919198,193.41,193.34,62.87]
[1761334353005,0.7,193.4,193.35,3.39479237]
[1761334353205,0.7,193.4,193.34,62.87]
[1761334353406,0.7,193.4,193.35,8.56579855]
[1761334353607,0.7,193.4,193.35,5.17172204]
[1761334355632,9.34990834,193.4,193.34,67.37219905]
[1761334356022,0.7,193.39,193.34,67.37219905]
[1761334356221,36.36,193.38,193.34,67.37219905]
[1761334356416,36.36,193.38,193.34,68.04219905]
[1761334356616,0.7,193.37,193.34,62.2]
[1761334357018,0.7,193.37,193.34,0.2]
[1761334357225,36.36,193.36,193.34,0.2]
[1761334357732,0.7,193.35,193.34,0.2]
[1761334359339,37.06,193.35,193.34,0.2]
[1761334359524,0.7,193.35,193.34,0.2]
[1761334359836,37.04,193.35,193.34,0.2]
[1761334362239,37.04,193.35,193.34,62.2]
[1761334363026,36.34,193.35,193.34,62.2]
[1761334365131,37.04,193.35,193.34,62.2]
[1761334365329,0.7,193.35,193.34,62.2]
[1761334365524,42.19196793,193.35,193.34,62.2]
[1761334366124,45.67115991,193.35,193.34,62.2]
[1761334370724,45.67115991,193.35,193.34,0.2]
[1761334372730,5.87196793,193.35,193.34,0.2]
[1761334372930,45.65115991,193.35,193.34,0.2]
[1761334373136,15.53880817,193.56,193.35,0.7]
[1761334373337,8.63267154,193.7,193.52,3.47919198]
[1761334373338,0.1,193.59,193.52,3.47919198]
[1761334373736,14.8,193.58,193.54,3.47919198]
[1761334374279,0.1,193.59,193.54,3.47919198]
[1761334374280,0.1,193.59,193.55,0.7]
[1761334374555,30.48,193.58,193.55,0.7]
[1761334374751,30.48,193.58,193.56,13.49658827]
[1761334374951,30.48,193.58,193.56,5.16630138]
[1761334375152,30.48,193.58,193.57,0.7]
[1761334375535,0.1,193.59,193.55,13.49684479]
[1761334375740,36.62,193.58,193.55,14.19684479]
[1761334376639,36.62,193.58,193.55,13.49684479]
[1761334376858,36.62,193.58,193.56,0.7]
[1761334377056,0.1,193.59,193.56,5.866182]
[1761334377359,36.6,193.58,193.56,5.866182]
[1761334377535,36.6,193.58,193.56,5.166182]
[1761334378157,36.6,193.57,193.56,5.166182]
[1761334378358,0.1,193.59,193.56,5.856182]
[1761334378555,36.6,193.58,193.56,5.856182]
[1761334379054,36.6,193.57,193.53,0.69]
[1761334379262,36.6,193.57,193.54,5.85689056]
[1761334379660,36.6,193.57,193.55,0.69]
[1761334379848,0.1,193.59,193.54,5.16689056]
[1761334380050,36.6,193.58,193.54,5.85689056]
[1761334381554,0.1,193.59,193.55,0.69]
[1761334381948,36.6,193.58,193.55,0.69]
[1761334382754,36.6,193.58,193.56,5.16635668]
[1761334383258,36.6,193.58,193.56,5.85635668]
[1761334384964,0.1,193.59,193.57,0.69]
[1761334385744,36.56,193.58,193.57,0.69]
[1761334385940,0.1,193.59,193.57,0.69]
[1761334386246,0.1,193.59,193.56,5.16635668]
[1761334386247,36.56,193.58,193.56,5.16635668]
[1761334386647,36.56,193.58,193.56,5.85635668]
[1761334387168,0.1,193.59,193.57,0.69]
[1761334387356,36.54,193.58,193.57,0.69]
[1761334387741,36.54,193.58,193.56,10.72082314]
[1761334387945,36.54,193.58,193.56,11.41082314]
[1761334388168,0.1,193.59,193.57,0.69]
[1761334388353,36.54,193.58,193.57,0.69]
[1761334388560,0.1,193.59,193.57,0.69]
[1761334388764,0.1,193.59,193.58,5.55446646]
[1761334389159,0.1,193.59,193.58,11.41028937]
[1761334389468,36.64,193.59,193.58,11.41028937]
[1761334389975,36.64,193.59,193.58,10.72028937]
[1761334390471,36.62,193.59,193.58,10.72028937]
[1761334390773,0.1,193.59,193.58,10.72028937]
[1761334391075,36.62,193.59,193.58,11.41028937]
[1761334392972,36.6,193.59,193.58,10.72028937]
[1761334393350,36.6,193.59,193.58,5.55446646]
[1761334393573,0.1,193.59,193.57,5.16608978]
[1761334393772,36.6,193.59,193.57,5.16608978]
[1761334394073,36.5,193.58,193.57,5.85608978]
[1761334394365,36.5,193.58,193.55,10.72109007]
[1761334394559,36.5,193.58,193.55,11.41109007]
[1761334394747,36.5,193.58,193.55,8.07859013]
[1761334394947,36.5,193.58,193.55,70.07859013]
[1761334395348,36.5,193.57,193.56,0.69]
[1761334396564,36.5,193.57,193.56,5.85635668]
[1761334397574,0.1,193.59,193.56,67.85635668]
[1761334397873,0.1,193.59,193.58,2.22196652]
[1761334398075,36.58,193.59,193.56,70.0783232]
[1761334398587,36.58,193.59,193.56,69.3883232]
[1761334398757,36.58,193.59,193.57,0.69]
[1761334398952,0.1,193.59,193.57,0.69]
[1761334399154,36.48,193.58,193.57,0.69]
[1761334400178,0.1,193.59,193.57,5.85606756]
[1761334400381,36.48,193.58,193.57,5.85606756]
[1761334401981,36.48,193.58,193.56,69.38829372]
[1761334402484,36.48,193.58,193.56,70.09829372]
[1761334403066,36.48,193.58,193.56,67.8763272]
[1761334404166,36.48,193.58,193.57,2.93196652]
[1761334404974,0.1,193.59,193.56,5.1663272]
[1761334405182,36.44,193.58,193.56,8.09829372]
[1761334405982,36.44,193.58,193.57,5.87608978]
[1761334406381,36.44,193.58,193.57,5.16608978]
[1761334407887,36.42,193.58,193.57,0.71]
[1761334408971,36.42,193.58,193.56,5.16630189]
[1761334409472,36.42,193.58,193.56,5.87630189]
[1761334409683,36.42,193.58,193.56,67.87630189]
[1761334410285,0.1,193.59,193.56,67.87630189]
[1761334410485,0.1,193.59,193.57,2.93196652]
[1761334410669,36.42,193.58,193.57,2.93196652]
[1761334410869,36.42,193.58,193.57,2.22196652]
[1761334411092,0.1,193.59,193.57,2.22196652]
[1761334411282,36.42,193.58,193.57,2.22196652]
[1761334411473,36.42,193.58,193.57,2.93196652]
[1761334411991,36.42,193.58,193.57,8.0980563]
[1761334415269,0.1,193.59,193.57,8.0980563]
[1761334415485,36.4,193.58,193.57,7.3880563]
[1761334415696,0.1,193.59,193.57,5.16608978]
[1761334415896,36.38,193.58,193.57,5.16608978]
[1761334416669,36.38,193.58,193.57,5.87608978]
[1761334417097,36.38,193.58,193.57,11.49822976]
[1761334417399,36.38,193.58,193.57,9.27626324]
[1761334418109,0.1,193.59,193.57,15.70118101]
[1761334418317,2.22196652,193.7,193.61,22.88]
[1761334418529,36.42,193.69,193.65,2.22196652]
[1761334418712,2.81165231,193.71,193.66,4.11017346]
[1761334419006,2.81165231,193.71,193.67,3.40017346]
[1761334419007,5.03361883,193.71,193.67,3.40017346]
[1761334419188,36.42,193.7,193.68,3.40017346]
[1761334419382,36.42,193.7,193.66,5.87360373]
[1761334419594,36.42,193.7,193.67,3.40866548]
[1761334419800,36.42,193.7,193.66,5.87360373]
[1761334420003,36.42,193.7,193.67,3.40854411]
[1761334420211,8.69405479,193.71,193.66,5.87360373]
[1761334420515,10.91602131,193.71,193.67,3.40647498]
[1761334420694,36.4,193.7,193.66,5.87360373]
[1761334420888,43.78460718,193.7,193.67,3.40647618]
[1761334421109,2.94196652,193.69,193.64,5.16403485]
[1761334421403,39.34196652,193.69,193.65,3.40672508]
[1761334421605,39.34196652,193.69,193.64,5.87403485]
[1761334421908,37.12,193.69,193.65,4.11588718]
[1761334422105,38.62196652,193.69,193.65,5.87389014]
[1761334422303,2.94196652,193.69,193.65,5.16389014]
[1761334422505,36.4,193.68,193.65,5.16389014]
[1761334423991,36.38,193.67,193.65,5.16389014]
[1761334424601,36.38,193.67,193.65,62.0]
[1761334424801,5.16290699,193.69,193.65,62.0]
[1761334425014,36.38,193.68,193.65,62.71]
[1761334427408,7.38487916,193.69,193.65,62.71]
[1761334427614,0.72,193.7,193.65,62.71]
[1761334427615,36.36,193.68,193.65,67.87382657]
[1761334428124,36.36,193.67,193.65,67.87382657]
[1761334428713,8.1047757,193.7,193.65,62.71]
[1761334428914,36.34,193.69,193.65,62.71]
[1761334429314,0.72,193.69,193.65,62.71]
[1761334429626,36.34,193.68,193.65,62.71]
[1761334429827,2.94196652,193.69,193.65,62.71]
[1761334430119,36.34,193.68,193.65,62.71]
[1761334430818,0.69,193.67,193.6,67.16509354]
[1761334431004,2.22196652,193.66,193.61,0.67]
[1761334431390,2.22196652,193.65,193.61,0.67]
[1761334431818,0.69,193.66,193.61,0.67]
[1761334432025,5.16395558,193.65,193.61,0.67]
[1761334432229,36.34,193.64,193.61,0.67]
[1761334432413,36.34,193.63,193.61,0.67]
[1761334432611,36.34,193.62,193.61,0.67]
[1761334433011,39.25196652,193.62,193.57,62.0]
[1761334433335,2.22196652,193.61,193.58,0.67]
[1761334433512,0.69,193.64,193.58,0.67]
[1761334433513,36.34,193.6,193.58,0.67]
[1761334433707,2.22196652,193.62,193.58,0.67]
[1761334433900,36.34,193.59,193.58,0.67]
[1761334435230,36.34,193.59,193.58,4.07366229]
[1761334437823,36.34,193.59,193.57,62.0]
[1761334438124,36.34,193.59,193.57,62.7]
[1761334438320,36.34,193.59,193.57,67.86607499]
[1761334439724,36.34,193.59,193.58,0.7]
[1761334439920,36.3,193.59,193.58,0.7]
[1761334440515,3.47183109,193.61,193.58,0.7]
[1761334440718,36.3,193.59,193.58,0.7]
[1761334441413,3.47183109,193.61,193.57,67.16607499]
[1761334441612,36.3,193.6,193.57,67.86607499]
[1761334442135,36.3,193.6,193.57,67.16607499]
[1761334442315,36.3,193.59,193.58,5.86577815]
[1761334442637,36.3,193.59,193.58,9.27002186]
[1761334444339,36.28,193.59,193.58,9.27002186]
[1761334447336,39.75183109,193.59,193.55,0.7]
[1761334447523,36.28,193.58,193.56,3.40627633]
[1761334447720,3.47183109,193.62,193.57,3.40627633]
[1761334447928,36.28,193.61,193.58,4.10627633]
[1761334448234,36.28,193.6,193.59,0.7]
[1761334449541,36.98,193.6,193.57,62.0]
[1761334449714,45.61712388,193.6,193.57,62.0]
[1761334450018,4.17183109,193.59,193.57,62.0]
[1761334450639,44.91712388,193.6,193.57,62.0]
[1761334451137,40.45183109,193.6,193.57,62.0]
[1761334452040,45.61712034,193.6,193.57,62.0]
[1761334452630,12.91119636,193.64,193.58,0.7]
[1761334452631,5.16485335,193.62,193.58,0.7]
[1761334452838,39.73183109,193.61,193.57,62.0]
[1761334453024,45.59704247,193.61,193.57,62.0]
[1761334453819,44.89704247,193.61,193.57,62.0]
[1761334454015,45.59704247,193.61,193.57,62.0]
[1761334454239,9.33704247,193.61,193.57,62.0]
[1761334454430,36.26,193.6,193.57,62.0]
[1761334455336,3.47183109,193.58,193.57,62.0]
[1761334455531,4.17183109,193.59,193.57,62.0]
[1761334455731,36.26,193.58,193.57,62.0]
[1761334458026,39.73183109,193.58,193.57,62.0]
[1761334458352,39.73183109,193.58,193.54,67.86683871]
[1761334458530,3.47183109,193.57,193.54,67.16683871]
[1761334458923,4.17183109,193.57,193.54,67.16683871]
[1761334459434,4.17183109,193.57,193.54,62.0]
[1761334460136,3.47183109,193.57,193.54,62.68]
[1761334460525,3.47183109,193.57,193.54,62.0]
[1761334460724,36.24,193.56,193.55,0.68]
[1761334461825,3.47183109,193.59,193.55,5.84662333]
[1761334462025,22.88,193.63,193.55,5.84662333]
[1761334462026,36.24,193.58,193.55,5.84662333]
[1761334462227,36.24,193.57,193.56,0.68]
[1761334462635,3.47183109,193.6,193.56,0.68]
[1761334462838,36.24,193.59,193.56,0.68]
[1761334463022,9.3071211,193.6,193.56,0.68]
[1761334463223,36.24,193.59,193.56,62.68]
[1761334464433,36.24,193.58,193.56,62.68]
[1761334464834,8.6371211,193.6,193.56,62.68]
[1761334465039,36.24,193.59,193.56,62.68]
[1761334466226,40.38183109,193.58,193.56,62.0]
[1761334466734,39.71183109,193.58,193.56,62.0]
[1761334467849,38.71183109,193.58,193.56,62.0]
[1761334468551,44.54768676,193.58,193.56,62.0]
[1761334468726,0.67,193.57,193.56,62.0]
[1761334468932,44.54768676,193.58,193.56,62.0]
[1761334469251,4.14183109,193.57,193.53,67.16713479]
[1761334469448,3.47183109,193.56,193.54,3.40860605]
[1761334469624,36.22,193.55,193.53,67.84713479]
[1761334469827,36.22,193.55,193.54,3.40860844]
[1761334470646,36.22,193.55,193.53,67.84713479]
[1761334471436,36.22,193.55,193.54,3.40978679]
[1761334473648,36.22,193.55,193.53,67.84713479]
[1761334474954,36.22,193.55,193.52,5.16741078]
[1761334475158,36.22,193.55,193.52,5.84741078]
[1761334479564,40.36183109,193.55,193.51,62.0]
[1761334479749,39.69183109,193.55,193.51,62.68]
[1761334480064,36.22,193.55,193.52,0.68]
[1761334481036,36.22,193.55,193.52,5.84726589]
[1761334481437,3.47183109,193.56,193.52,5.84726589]
[1761334481661,36.16,193.55,193.52,5.16726589]
[1761334482156,36.16,193.55,193.53,0.68]
[1761334484060,36.14,193.54,193.53,0.68]
[1761334484260,36.14,193.54,193.52,5.16726589]
[1761334484440,36.14,193.54,193.52,5.84726589]
[1761334485462,36.14,193.54,193.5,18.08785529]
[1761334485662,4.14183109,193.56,193.52,0.68]
[1761334485960,40.28183109,193.55,193.5,18.76785529]
[1761334486353,40.28183109,193.55,193.5,5.16795865]
[1761334486664,40.28183109,193.55,193.51,0.68]
[1761334487669,36.81,193.55,193.51,0.68]
[1761334487861,36.14,193.55,193.51,0.68]
[1761334488261,36.14,193.55,193.51,5.84766207]
[1761334488565,36.14,193.55,193.52,0.68]
[1761334489846,3.47183109,193.59,193.52,9.31916396]
[1761334490074,36.8,193.58,193.52,9.31916396]
[1761334490274,36.8,193.58,193.53,0.67]
[1761334490658,36.14,193.57,193.53,0.67]
[1761334490960,36.8,193.57,193.52,8.63916396]
[1761334491169,36.8,193.57,193.52,9.30916396]
[1761334491466,36.8,193.57,193.53,0.67]
[1761334491771,0.66,193.56,193.52,5.83733287]
[1761334493566,36.14,193.55,193.52,5.83733287]
[1761334493761,36.14,193.55,193.53,0.67]
[1761334495176,36.14,193.55,193.52,5.83733287]
[1761334495357,36.14,193.54,193.52,5.83733287]
[1761334495563,0.66,193.56,193.52,5.83733287]
[1761334495762,36.14,193.55,193.52,5.83733287]
[1761334496271,36.14,193.55,193.52,0.67]
[1761334496473,0.66,193.54,193.49,5.16796104]
[1761334496673,36.14,193.53,193.49,5.83796104]
[1761334496876,0.66,193.54,193.49,5.83796104]
[1761334497060,0.66,193.54,193.49,67.83796104]
[1761334497061,36.14,193.53,193.49,67.83796104]
[1761334497371,0.66,193.54,193.49,5.83796104]
[1761334497372,36.14,193.52,193.49,5.83796104]
[1761334497583,3.47183109,193.5,193.45,4.26647638]
[1761334497782,3.47183109,193.5,193.42,22.03343002]
[1761334497783,3.47183109,193.48,193.42,0.67]
[1761334498154,0.68,193.47,193.42,0.67]
[1761334498459,36.16,193.46,193.42,0.67]
[1761334499578,36.16,193.45,193.44,3.47183109]
[1761334499778,4.15183109,193.5,193.44,4.14183109]
[1761334499978,39.63183109,193.49,193.45,0.67]
[1761334500279,36.18,193.48,193.45,0.67]
[1761334500577,36.18,193.47,193.44,0.67]
[1761334500767,36.18,193.46,193.44,0.67]
[1761334500962,36.18,193.46,193.43,5.16967648]
[1761334501276,36.18,193.46,193.43,5.83967648]
[1761334501682,36.18,193.46,193.41,2.22485342]
[1761334501683,0.68,193.45,193.41,5.84027762]
[1761334501863,38.40485342,193.46,193.41,5.84027762]
[1761334502064,39.08485342,193.46,193.41,5.17027762]
[1761334502370,39.08485342,193.46,193.42,0.67]
[1761334502757,36.86,193.46,193.42,5.8400142]
[1761334503076,36.16,193.45,193.42,5.8400142]
[1761334503386,36.18,193.44,193.43,0.67]
[1761334503985,36.18,193.44,193.43,5.83982887]
[1761334504472,36.18,193.44,193.43,8.06468229]
[1761334504672,36.18,193.44,193.43,70.06468229]
[1761334505082,0.68,193.53,193.43,82.98925448]
[1761334505289,36.18,193.52,193.47,2.22485342]
[1761334505582,38.40485342,193.52,193.47,62.0]
[1761334505774,0.68,193.51,193.47,62.0]
[1761334506370,41.34756111,193.52,193.47,62.67]
[1761334506570,0.68,193.51,193.47,62.67]
[1761334507469,41.34756111,193.52,193.48,0.67]
[1761334507693,42.02756111,193.52,193.48,0.67]
[1761334508893,42.02756111,193.52,193.47,67.1686109]
[1761334509104,42.02756111,193.52,193.47,67.8386109]
[1761334509272,41.34756111,193.52,193.47,67.8386109]
[1761334509494,0.68,193.51,193.47,67.8386109]
[1761334509971,41.34756111,193.52,193.47,67.8386109]
[1761334510171,42.02756111,193.52,193.47,67.8386109]
[1761334510894,36.16,193.51,193.48,0.67]
[1761334511599,36.84,193.51,193.47,67.1686109]
[1761334511796,36.84,193.51,193.47,67.8386109]
[1761334512289,36.16,193.51,193.47,67.1686109]
[1761334512496,36.16,193.51,193.48,0.67]
[1761334512791,36.16,193.51,193.47,67.8386109]
[1761334512989,5.84756111,193.52,193.47,67.8386109]
[1761334513291,36.16,193.5,193.47,67.8386109]
[1761334516097,36.16,193.5,193.48,15.52513778]
[1761334516606,36.16,193.5,193.48,62.0]
[1761334517375,36.16,193.5,193.48,77.52513778]
[1761334518300,5.84749084,193.52,193.48,77.52513778]
[1761334518501,36.16,193.51,193.48,77.52513778]
[1761334518810,0.68,193.59,193.49,0.67]
[1761334519100,36.16,193.58,193.54,2.22485342]
[1761334519594,0.66,193.62,193.57,2.22485342]
[1761334519797,36.16,193.61,193.57,2.89485342]
[1761334520298,36.16,193.61,193.58,15.51871298]
[1761334520601,36.82,193.61,193.58,15.51871298]
[1761334523198,0.66,193.61,193.58,15.51871298]
[1761334523595,36.16,193.6,193.58,15.51871298]
[1761334524008,5.1648175,193.62,193.58,15.51871298]
[1761334524197,36.16,193.61,193.58,21.35452959]
[1761334524401,36.82,193.61,193.58,15.51871298]
[1761334524902,8.04939321,193.63,193.58,15.51871298]
[1761334525103,36.14,193.6,193.58,16.18871298]
[1761334526402,36.14,193.59,193.58,15.51871298]
[1761334528102,0.66,193.62,193.58,20.68448804]
[1761334528403,36.14,193.59,193.58,21.35448804]
[1761334529488,0.66,193.62,193.58,21.35448804]
[1761334529683,36.14,193.61,193.58,21.35448804]
[1761334529986,0.66,193.62,193.58,5.83577506]
[1761334530192,36.14,193.6,193.59,15.51791025]
[1761334530393,36.14,193.6,193.58,0.67]
[1761334530993,36.14,193.59,193.58,16.18791025]
[1761334531198,36.14,193.59,193.58,20.68373316]
[1761334531907,36.14,193.59,193.58,21.35373316]
[1761334532984,36.14,193.59,193.58,20.68373316]
[1761334533692,36.14,193.59,193.58,21.35373316]
[1761334535006,36.14,193.59,193.58,15.51791025]
[1761334535706,36.14,193.59,193.57,62.0]
[1761334537494,36.14,193.59,193.56,20.68565323]
[1761334537699,36.14,193.59,193.56,21.35565323]
[1761334539317,36.14,193.59,193.56,23.58050665]
[1761334540991,36.14,193.59,193.56,21.35565323]
[1761334541395,36.14,193.59,193.57,0.67]
[1761334541596,36.14,193.59,193.56,21.35565323]
[1761334544789,36.14,193.59,193.57,5.83604233]
[1761334545411,36.14,193.59,193.57,5.16604233]
[1761334545790,0.66,193.58,193.56,15.51951579]
[1761334545997,0.66,193.58,193.53,67.83714396]
[1761334546296,0.66,193.58,193.53,83.35826561]
[1761334547405,5.82588387,193.58,193.54,0.67]
[1761334549505,2.22485342,193.56,193.5,62.69]
[1761334549710,36.14,193.55,193.51,15.52272786]
[1761334550010,36.85,193.55,193.51,15.52272786]
[1761334550208,36.85,193.55,193.51,16.21272786]
[1761334550920,39.07485342,193.55,193.51,16.21272786]
[1761334551214,39.07485342,193.55,193.51,21.38035385]
[1761334552225,39.07485342,193.55,193.51,20.69035385]
[1761334552420,38.36485342,193.55,193.52,0.69]
[1761334552799,44.24158118,193.55,193.51,21.38035385]
[1761334553500,8.10158118,193.55,193.51,16.21272786]
[1761334553794,36.14,193.54,193.51,16.21272786]
[1761334555211,36.14,193.54,193.51,78.21272786]
[1761334555402,36.14,193.53,193.51,78.21272786]
[1761334555902,36.14,193.53,193.51,77.52272786]
[1761334556102,0.71,193.52,193.48,5.85827548]
[1761334556314,0.71,193.52,193.5,15.52353108]
[1761334556514,2.22485342,193.51,193.48,62.0]
[1761334556825,36.14,193.5,193.48,15.52513778]
[1761334557123,36.14,193.5,193.47,0.69]
[1761334557313,36.14,193.5,193.47,16.21513778]
[1761334559127,2.90485342,193.49,193.43,0.68]
[1761334559423,2.90485342,193.48,193.44,15.52835218]
[1761334559629,36.14,193.47,193.44,15.52835218]
[1761334559817,39.04485342,193.47,193.44,15.52835218]
[1761334560016,39.04485342,193.47,193.42,5.84996213]
[1761334560329,44.21371002,193.47,193.43,16.20835218]
[1761334560512,44.21371002,193.47,193.43,0.68]
[1761334560719,45.46581494,193.47,193.43,0.68]
[1761334561533,36.14,193.46,193.43,0.68]
[1761334561749,36.14,193.46,193.4,0.68]
[1761334561750,3.47695834,193.44,193.4,0.68]
[1761334562057,36.14,193.43,193.39,15.53237205]
[1761334562226,40.29695834,193.43,193.38,5.85095248]
[1761334562400,0.68,193.42,193.38,0.68]
[1761334562602,0.68,193.47,193.38,16.21237205]
[1761334562828,36.14,193.46,193.4,3.47695834]
[1761334563130,36.14,193.46,193.41,3.47695834]
[1761334563506,41.98907998,193.46,193.41,5.17031769]
[1761334563846,45.46603832,193.46,193.41,5.85031769]
[1761334564128,41.98907998,193.46,193.42,0.68]
[1761334564724,36.82,193.46,193.42,0.68]
[1761334564922,22.88,193.5,193.42,0.68]
[1761334565120,36.14,193.49,193.42,0.68]
[1761334565314,36.14,193.48,193.45,3.47695834]
[1761334565513,41.30853785,193.48,193.43,3.47695834]
[1761334565711,5.16825325,193.49,193.43,3.47695834]
[1761334566003,36.14,193.48,193.44,0.68]
[1761334566422,5.16825325,193.49,193.44,0.68]
[1761334566423,0.68,193.56,193.47,3.47695834]
[1761334566615,36.82,193.55,193.49,3.47695834]
[1761334566810,36.14,193.54,193.5,0.68]
[1761334567011,0.68,193.55,193.42,22.36176883]
[1761334567012,36.14,193.53,193.42,22.36176883]
[1761334567222,3.47695834,193.48,193.46,0.68]
[1761334567544,0.68,193.52,193.42,21.57225079]
[1761334567545,39.61695834,193.47,193.42,12.9252404]
[1761334567710,36.16,193.46,193.42,23.56]
[1761334568815,36.16,193.46,193.42,28.73009616]
[1761334570115,36.16,193.46,193.42,28.05009616]
[1761334570327,36.16,193.46,193.44,5.16956162]
[1761334570521,36.84,193.46,193.43,5.16977488]
[1761334570722,36.16,193.46,193.43,5.84977488]
[1761334571539,36.16,193.46,193.43,5.16977488]
[1761334571734,36.84,193.46,193.41,5.85010952]
[1761334571933,36.84,193.46,193.42,0.68]
[1761334572143,6.88035641,193.61,193.45,3.47695834]
[1761334572434,6.88035641,193.61,193.44,22.88]
[1761334572435,3.47695834,193.57,193.5,3.47695834]
[1761334572634,3.47695834,193.53,193.46,4.15695834]
[1761334572943,36.18,193.52,193.46,0.68]
[1761334573129,36.18,193.51,193.47,3.47695834]
[1761334573321,36.18,193.51,193.48,0.68]
[1761334573524,36.18,193.51,193.49,5.16822574]
[1761334574134,36.18,193.51,193.47,15.52513778]
[1761334574335,0.68,193.5,193.47,15.52513778]
[1761334574634,0.68,193.5,193.46,5.16878149]
[1761334576240,0.68,193.5,193.46,5.84878149]
[1761334576548,0.68,193.5,193.45,5.16929439]
[1761334576730,0.68,193.5,193.45,8.64625273]
[1761334577067,36.18,193.49,193.46,4.15695834]
[1761334577349,36.18,193.49,193.46,3.47695834]
[1761334577564,36.86,193.49,193.45,5.16929439]
[1761334577725,36.18,193.49,193.46,0.68]
[1761334578042,36.18,193.49,193.45,8.64625273]
[1761334578043,36.84,193.48,193.42,0.68]
[1761334578239,39.63695834,193.47,193.4,5.85058141]
[1761334578551,8.64599903,193.46,193.4,9.32753975]
[1761334578720,36.18,193.45,193.4,5.85058141]
[1761334578920,36.18,193.45,193.4,9.32753975]
[1761334579124,36.18,193.45,193.41,0.68]
[1761334579323,40.33695834,193.45,193.39,8.64781902]
[1761334579633,36.86,193.45,193.4,3.47695834]
[1761334579833,36.86,193.45,193.4,4.17695834]
[1761334580033,36.86,193.45,193.41,0.7]
[1761334580733,45.50628188,193.45,193.4,5.17040682]
[1761334580938,45.50628188,193.45,193.4,5.87040682]
[1761334581137,0.7,193.44,193.38,5.17090631]
[1761334581448,0.7,193.53,193.43,26.35695834]
[1761334581749,3.47695834,193.48,193.38,43.95464816]
[1761334582049,8.77695834,193.47,193.42,22.88]
[1761334582226,5.92,193.46,193.42,22.88]
[1761334582427,5.92,193.46,193.42,26.35695834]
[1761334582629,5.92,193.46,193.44,5.16956162]
[1761334583355,5.92,193.46,193.44,5.86956162]
[1761334583859,36.24,193.45,193.44,5.86956162]
[1761334584858,36.24,193.45,193.44,5.16956162]
[1761334585037,36.24,193.45,193.43,5.16978937]
[1761334585238,36.24,193.45,193.43,5.86978937]
[1761334586650,36.24,193.45,193.43,9.34674771]
[1761334587156,36.24,193.45,193.43,5.86978937]
[1761334587354,36.24,193.45,193.4,5.17063081]
[1761334587556,36.24,193.45,193.42,3.47695834]
[1761334588054,0.7,193.44,193.4,8.64758915]
[1761334588370,41.40930804,193.45,193.4,9.34758915]
[1761334588567,42.10930804,193.45,193.4,9.34758915]
[1761334588770,0.7,193.44,193.39,28.05087514]
[1761334589065,0.7,193.44,193.39,8.64783348]
[1761334589456,0.7,193.44,193.38,8.64810532]
[1761334589652,3.47695834,193.43,193.37,0.2]
[1761334589865,0.7,193.44,193.37,5.37142342]
[1761334590067,0.7,193.43,193.37,8.84838176]